bitfinex-derivatives/quotes_SOLF0:USTF0_20250518
["timestamp","ask_amount","ask_price","bid_price","bid_amount"]
[1747537244849,117.04,167.28,167.19,58.52]
[1747537246157,58.52,167.28,167.19,58.52]
[1747537246365,117.02,167.28,167.19,58.52]
[1747537246563,5.9771,167.25,167.22,5.9779]
[1747537251368,5.9771,167.25,167.21,5.9784]
[1747537251665,5.9775,167.24,167.19,58.52]
[1747537251969,5.9775,167.24,167.21,5.9784]
[1747537252654,5.9772,167.25,167.21,5.9784]
[1747537252966,5.9772,167.25,167.22,5.9781]
[1747537253354,5.9768,167.26,167.22,5.9781]
[1747537256868,5.9767,167.26,167.22,5.9779]
[1747537260365,117.02,167.28,167.22,5.9779]
[1747537260575,117.02,167.28,167.21,5.9784]
[1747537260773,117.02,167.28,167.19,58.52]
[1747537261666,117.02,167.28,167.18,58.48]
[1747537261974,122.28643462,167.28,167.15,5.59015306]
[1747537262275,5.26643462,167.25,167.15,5.9806]
[1747537262461,116.96,167.24,167.15,5.9806]
[1747537263071,5.8921,167.23,167.16,5.9802]
[1747537263371,3.37266647,167.22,167.16,5.9802]
[1747537263876,3.37266647,167.22,167.17,5.9799]
[1747537264275,5.9786,167.21,167.17,5.9799]
[1747537264570,5.8921,167.23,167.16,3.37266647]
[1747537264871,1.9326,167.23,167.18,3.37266647]
[1747537265066,7.9106,167.23,167.19,5.979]
[1747537265770,1.9326,167.23,167.2,5.9788]
[1747537265970,116.96,167.25,167.18,58.48]
[1747537266271,58.48,167.25,167.22,5.9778]
[1747537266472,58.48,167.28,167.18,58.48]
[1747537266660,58.48,167.28,167.19,5.07280541]
[1747537266865,5.977,167.26,167.22,5.978]
[1747537267573,5.977,167.26,167.23,5.9776]
[1747537268677,5.977,167.26,167.2,5.07280541]
[1747537268678,5.9771,167.25,167.22,5.978]
[1747537269067,5.9771,167.25,167.2,5.07280541]
[1747537269378,122.8914,167.29,167.2,69.53160541]
[1747537269976,122.8914,167.29,167.2,64.4588]
[1747537271282,5.9774,167.25,167.2,64.4588]
[1747537271477,58.48,167.25,167.2,64.4588]
[1747537272078,5.9776,167.24,167.21,5.9785]
[1747537272479,5.9776,167.24,167.2,58.48]
[1747537272978,5.9776,167.24,167.2,64.4587]
[1747537273479,5.9776,167.24,167.21,5.9785]
[1747537273877,5.9776,167.24,167.2,58.48]
[1747537274077,5.9779,167.23,167.2,64.4587]
[1747537274282,58.48,167.25,167.2,64.4587]
[1747537274483,58.48,167.25,167.2,5.9787]
[1747537274778,5.9777,167.24,167.2,5.9787]
[1747537275771,5.9777,167.24,167.19,5.9791]
[1747537276475,58.48,167.25,167.19,5.9791]
[1747537276681,5.9779,167.23,167.19,5.9791]
[1747537277083,5.9779,167.23,167.2,5.9789]
[1747537281184,5.9779,167.23,167.19,5.9791]
[1747537281386,5.9779,167.23,167.18,58.48]
[1747537281387,5.9785,167.21,167.2,5.09471136]
[1747537283483,5.9791,167.2,167.16,5.9802]
[1747537284380,5.9791,167.2,167.17,5.9799]
[1747537284785,5.9791,167.2,167.18,5.09740245]
[1747537285184,5.9792,167.19,167.18,5.09740245]
[1747537286292,5.9792,167.19,167.16,5.9802]
[1747537286589,5.979,167.2,167.16,5.9802]
[1747537287089,1.9693,167.23,167.15,5.9806]
[1747537287389,5.9798,167.18,167.15,58.48]
[1747537287589,5.9798,167.18,167.16,5.09663998]
[1747537288592,5.9799,167.17,167.16,5.09663998]
[1747537288887,5.9799,167.17,167.16,2.00673998]
[1747537289087,64.4599,167.17,167.16,2.00673998]
[1747537289387,5.9809,167.15,167.12,64.05015306]
[1747537290187,5.9811,167.14,167.12,64.05015306]
[1747537290387,58.48,167.17,167.12,64.05015306]
[1747537290587,58.48,167.17,167.12,5.59015306]
[1747537290787,5.9813,167.14,167.12,5.59015306]
[1747537292093,5.9814,167.13,167.12,5.59015306]
[1747537292385,5.26758851,167.21,167.12,5.59015306]
[1747537292595,116.96,167.2,167.12,5.59015306]
[1747537292890,116.96,167.2,167.14,5.981]
[1747537292891,5.9796,167.18,167.14,5.981]
[1747537293092,116.96,167.2,167.11,58.48]
[1747537293292,58.48,167.21,167.16,5.98]
[1747537293594,58.48,167.23,167.15,58.48]
[1747537293794,58.48,167.23,167.19,5.9789]
[1747537294893,64.4581,167.23,167.19,5.9789]
[1747537295695,5.9782,167.22,167.18,5.9795]
[1747537295996,58.48,167.23,167.16,116.96]
[1747537296195,58.48,167.23,167.16,58.48]
[1747537297396,5.9785,167.21,167.17,5.9797]
[1747537304800,5.9784,167.22,167.17,5.9797]
[1747537305203,58.48,167.23,167.17,5.9797]
[1747537306198,5.9786,167.21,167.17,5.9797]
[1747537309907,5.9786,167.21,167.18,5.9796]
[1747537312818,58.48,167.23,167.19,5.9791]
[1747537313009,1.87,167.24,167.15,65.78468851]
[1747537313311,5.9777,167.24,167.15,67.65108851]
[1747537313505,5.9777,167.24,167.2,5.9786]
[1747537315317,1.9495,167.27,167.19,58.48]
[1747537315515,58.48,167.28,167.19,58.48]
[1747537315812,60.4983,167.29,167.19,58.48]
[1747537316006,58.48,167.29,167.19,58.48]
[1747537316209,11.14135954,167.3,167.21,5.26758851]
[1747537316409,11.14135954,167.3,167.22,58.48]
[1747537316613,58.48,167.31,167.23,58.48]
[1747537317420,5.9757,167.29,167.25,5.9769]
[1747537318618,5.9757,167.29,167.26,5.9766]
[1747537318819,5.9754,167.3,167.23,58.48]
[1747537319117,73.35985954,167.33,167.23,58.48]
[1747537319325,5.975,167.31,167.24,5.26758851]
[1747537320313,5.9747,167.32,167.24,5.26758851]
[1747537320514,13.00275954,167.33,167.28,5.9758]
[1747537321015,1.8614,167.33,167.28,5.9758]
[1747537321524,1.8614,167.33,167.27,58.46]
[1747537322017,5.9749,167.32,167.27,58.46]
[1747537322320,1.8614,167.33,167.27,58.46]
[1747537323020,5.9752,167.31,167.27,58.46]
[1747537323421,5.9752,167.31,167.27,64.4363]
[1747537325724,5.9753,167.3,167.27,64.4363]
[1747537325923,5.9753,167.3,167.26,5.9766]
[1747537326123,1.8614,167.33,167.26,58.44]
[1747537326333,1.8614,167.33,167.21,4.037]
[1747537326517,1.8614,167.33,167.22,116.9]
[1747537326713,5.26758851,167.31,167.21,58.44]
[1747537326919,116.9,167.3,167.21,58.44]
[1747537327120,120.9081,167.3,167.21,58.44]
[1747537328023,5.9779,167.23,167.21,58.44]
[1747537328224,5.9779,167.23,167.19,5.9792]
[1747537329323,5.9776,167.24,167.2,5.9789]
[1747537329726,58.46,167.26,167.19,5.979]
[1747537330227,58.46,167.26,167.18,64.4195]
[1747537330422,58.46,167.26,167.18,58.44]
[1747537330423,116.9,167.26,167.18,58.44]
[1747537330821,5.9784,167.22,167.18,64.4195]
[1747537331022,116.9,167.26,167.18,58.44]
[1747537332025,58.48,167.29,167.18,58.44]
[1747537332225,62.4481,167.3,167.18,58.44]
[1747537332419,58.48,167.29,167.18,58.44]
[1747537332928,5.9765,167.27,167.23,5.9776]
[1747537334124,5.9767,167.26,167.23,5.9776]
[1747537335030,5.9765,167.27,167.23,5.9776]
[1747537335930,5.9765,167.27,167.24,5.9774]
[1747537336130,5.9765,167.27,167.22,58.44]
[1747537336328,5.9768,167.26,167.22,58.44]
[1747537336729,5.9768,167.26,167.22,64.418]
[1747537336923,5.9771,167.25,167.22,64.418]
[1747537338030,5.9769,167.26,167.22,64.418]
[1747537340032,5.9769,167.26,167.22,58.44]
[1747537340332,58.48,167.28,167.22,58.44]
[1747537341033,5.9771,167.25,167.22,58.44]
[1747537344336,5.9768,167.26,167.22,64.418]
[1747537344939,5.9771,167.25,167.22,58.44]
[1747537345145,58.48,167.28,167.19,58.44]
[1747537346539,5.9778,167.23,167.19,64.419]
[1747537347843,5.9775,167.24,167.2,5.9788]
[1747537349745,58.44,167.26,167.19,64.4189]
[1747537349940,58.44,167.26,167.19,58.44]
[1747537350339,5.9775,167.24,167.19,64.419]
[1747537350547,58.46,167.24,167.19,64.419]
[1747537351245,5.978,167.23,167.19,64.419]
[1747537357648,64.4374,167.24,167.2,5.9786]
[1747537358342,5.9778,167.23,167.2,5.9786]
[1747537358535,58.46,167.24,167.21,5.9785]
[1747537358745,116.9,167.26,167.21,5.9785]
[1747537359149,58.44,167.26,167.19,58.44]
[1747537359344,60.3586,167.27,167.19,116.9]
[1747537359549,58.46,167.29,167.19,116.9]
[1747537359745,69.60135954,167.32,167.21,5.26653636]
[1747537359946,11.14135954,167.32,167.22,1.9703]
[1747537360142,17.11605954,167.32,167.23,116.92]
[1747537360448,11.14135954,167.32,167.23,116.92]
[1747537360646,11.14135954,167.32,167.24,5.26653636]
[1747537360846,11.14135954,167.32,167.31,5.9749]
[1747537361253,14.85514605,167.36,167.35,5.9735]
[1747537362049,4.0526,167.44,167.34,58.46]
[1747537362254,1.19452905,167.43,167.34,58.46]
[1747537362853,6.46106541,167.43,167.31,58.44]
[1747537363055,5.9745,167.33,167.31,58.44]
[1747537363254,58.64,167.37,167.28,58.44]
[1747537363554,4.0613,167.36,167.28,58.44]
[1747537363747,6.0567,167.36,167.28,58.44]
[1747537363945,6.0567,167.36,167.25,5.59015306]
[1747537364551,6.0567,167.36,167.24,58.44]
[1747537364552,6.0567,167.36,167.26,63.83415844]
[1747537364754,5.9745,167.33,167.28,5.9757]
[1747537366757,5.9746,167.32,167.28,5.9757]
[1747537366956,5.9746,167.32,167.27,5.9763]
[1747537367355,5.975,167.31,167.27,5.9763]
[1747537367551,5.975,167.31,167.26,64.6766]
[1747537367744,58.68,167.33,167.26,58.44]
[1747537367946,5.975,167.31,167.26,64.4166]
[1747537368360,58.68,167.33,167.26,58.44]
[1747537368656,5.9746,167.32,167.27,5.9763]
[1747537369258,5.975,167.31,167.27,5.9763]
[1747537370758,5.9753,167.3,167.26,64.4167]
[1747537370958,5.9753,167.3,167.26,58.44]
[1747537371160,58.68,167.33,167.26,58.44]
[1747537371458,5.9747,167.32,167.26,58.44]
[1747537372455,5.9747,167.32,167.28,5.9757]
[1747537373053,5.9747,167.32,167.29,5.9756]
[1747537373453,5.9739,167.34,167.26,58.44]
[1747537373755,117.16,167.4,167.28,58.7]
[1747537373955,58.72,167.4,167.29,5.26653636]
[1747537374155,5.9728,167.38,167.33,5.9739]
[1747537374353,5.9728,167.38,167.3,58.42]
[1747537374555,5.9721,167.39,167.35,5.9733]
[1747537374750,5.9721,167.39,167.3,60.3309]
[1747537375161,5.9725,167.38,167.33,5.9739]
[1747537376548,121.1058,167.41,167.33,5.9739]
[1747537376750,5.973,167.37,167.33,5.9739]
[1747537377063,121.1058,167.41,167.33,5.9739]
[1747537377855,5.9727,167.38,167.34,5.9738]
[1747537378059,5.9727,167.38,167.34,64.3938]
[1747537378460,5.9721,167.4,167.34,58.42]
[1747537379164,5.9721,167.39,167.36,5.9729]
[1747537379965,5.9718,167.4,167.36,5.9729]
[1747537381362,1.9406,167.45,167.36,58.8]
[1747537381566,1.9406,167.45,167.36,64.05345116]
[1747537381859,62.7137,167.47,167.36,64.05335198]
[1747537382064,3.9137,167.47,167.36,64.05335198]
[1747537382259,3.9137,167.47,167.37,1.907]
[1747537382565,3.9137,167.47,167.44,5.9702]
[1747537382962,117.5,167.49,167.42,58.66]
[1747537383265,5.9688,167.49,167.42,58.66]
[1747537383457,58.84,167.5,167.42,58.66]
[1747537383656,5.9689,167.48,167.42,58.66]
[1747537383855,58.66,167.55,167.42,63.91335198]
[1747537384059,117.6,167.55,167.42,63.91335198]
[1747537384262,117.6,167.55,167.45,5.25335198]
[1747537384569,58.94,167.55,167.46,117.62]
[1747537384866,58.94,167.55,167.51,5.9675]
[1747537385369,5.9667,167.54,167.51,5.9675]
[1747537385563,14.85514605,167.57,167.42,5.25335198]
[1747537385564,14.85514605,167.57,167.5,117.68]
[1747537385764,61.1136,167.64,167.51,63.91335198]
[1747537386263,5.25335198,167.63,167.51,58.64]
[1747537386763,5.9648,167.6,167.51,58.64]
[1747537387065,59.06,167.59,167.46,5.25335198]
[1747537387266,5.9664,167.55,167.47,117.74]
[1747537387565,59.28,167.54,167.42,60.85459226]
[1747537387867,5.9676,167.52,167.46,5.9695]
[1747537388068,61.207,167.54,167.43,117.92]
[1747537388765,1.927,167.54,167.43,117.92]
[1747537388958,1.927,167.54,167.5,5.9682]
[1747537390172,7.8939,167.54,167.49,5.9685]
[1747537390871,1.927,167.54,167.5,5.9681]
[1747537392575,7.894,167.54,167.5,5.9681]
[1747537392769,3.9796,167.59,167.47,117.94]
[1747537392968,5.8972,167.59,167.48,63.86590513]
[1747537393166,5.8972,167.59,167.49,5.24553558]
[1747537393471,3.8641,167.59,167.49,5.24553558]
[1747537394172,3.8641,167.59,167.48,58.62]
[1747537394372,58.62,167.58,167.48,58.62]
[1747537394671,59.28,167.57,167.48,58.62]
[1747537394872,61.1717,167.57,167.48,58.62]
[1747537395174,61.1717,167.57,167.46,5.24553558]
[1747537395372,61.1717,167.57,167.47,58.62]
[1747537395565,5.9679,167.51,167.47,58.62]
[1747537396072,59.26,167.53,167.47,64.5892]
[1747537396073,65.2274,167.53,167.47,64.5892]
[1747537396870,5.9675,167.52,167.47,58.62]
[1747537397376,7.9612,167.52,167.47,58.62]
[1747537397678,7.9612,167.52,167.47,64.5889]
[1747537398477,7.9612,167.52,167.48,5.9689]
[1747537399081,1.9937,167.52,167.47,58.62]
[1747537399976,60.5117,167.57,167.47,58.62]
[1747537400175,59.34,167.56,167.47,58.62]
[1747537400374,59.34,167.56,167.48,59.36]
[1747537400570,60.5117,167.57,167.48,59.36]
[1747537400771,1.9351,167.58,167.48,59.36]
[1747537400973,1.9351,167.58,167.5,5.24553558]
[1747537401273,1.9465,167.59,167.51,58.62]
[1747537401478,5.9666,167.55,167.51,5.9677]
[1747537401978,5.967,167.54,167.5,64.5881]
[1747537402171,5.967,167.54,167.5,58.62]
[1747537402373,60.5665,167.59,167.5,58.62]
[1747537402979,5.9664,167.55,167.51,5.9677]
[1747537404084,59.42,167.56,167.51,5.9677]
[1747537404286,59.42,167.56,167.5,58.62]
[1747537404884,59.42,167.56,167.52,5.9673]
[1747537405083,59.42,167.56,167.43,10.41732502]
[1747537405279,2.004,167.55,167.46,58.62]
[1747537405887,5.9673,167.53,167.49,5.9685]
[1747537406287,5.9678,167.51,167.47,5.9691]
[1747537406991,5.9678,167.51,167.46,64.5895]
[1747537407299,62.5972,167.55,167.46,58.62]
[1747537407300,65.4476,167.52,167.46,58.62]
[1747537407887,65.4476,167.52,167.48,5.9688]
[1747537408197,65.4476,167.52,167.46,58.62]
[1747537408381,5.9679,167.51,167.46,58.62]
[1747537408684,59.48,167.52,167.46,64.5895]
[1747537408885,5.9679,167.51,167.46,58.62]
[1747537409085,5.9679,167.51,167.47,5.9692]
[1747537409281,58.62,167.68,167.49,8.39459407]
[1747537409494,3.7261,167.66,167.5,118.14]
[1747537409680,3.7261,167.66,167.5,118.9104]
[1747537409886,3.7261,167.66,167.51,1.8841]
[1747537410190,1.8635,167.66,167.52,515.84]
[1747537410391,61.4435,167.66,167.53,118.2]
[1747537410794,61.4435,167.66,167.56,5.9659]
[1747537410995,61.4435,167.66,167.53,118.2]
[1747537411191,61.4435,167.66,167.54,58.62]
[1747537411590,5.9652,167.59,167.54,58.62]
[1747537411790,59.6,167.6,167.56,5.9658]
[1747537412798,59.6,167.6,167.55,5.9663]
[1747537413190,59.6,167.6,167.54,58.62]
[1747537413392,59.6,167.6,167.57,5.9656]
[1747537413590,59.56,167.62,167.57,5.9656]
[1747537413791,119.16,167.62,167.57,5.9656]
[1747537414100,125.1241,167.62,167.57,5.9656]
[1747537414596,125.1241,167.62,167.58,5.9652]
[1747537414795,119.16,167.62,167.58,5.9652]
[1747537415094,59.56,167.62,167.54,58.62]
[1747537415300,59.56,167.62,167.6,5.9645]
[1747537415594,127.0263,167.66,167.58,59.56]
[1747537415993,127.0263,167.66,167.61,5.9642]
[1747537416399,121.0635,167.66,167.62,5.9636]
[1747537416603,121.0635,167.66,167.58,59.56]
[1747537417101,121.0635,167.66,167.62,5.9637]
[1747537417800,121.0635,167.66,167.58,59.56]
[1747537418299,1.8635,167.66,167.58,59.56]
[1747537419404,1.8635,167.66,167.59,59.54]
[1747537419908,7.8262,167.66,167.59,59.54]
[1747537420201,1.8635,167.66,167.63,5.9632]
[1747537420502,1.8635,167.66,167.59,59.54]
[1747537421101,1.8635,167.66,167.63,5.9633]
[1747537421901,1.8635,167.66,167.64,5.9631]
[1747537422602,1.8635,167.66,167.59,59.54]
[1747537423795,1.8635,167.66,167.64,5.963]
[1747537424704,1.8635,167.66,167.65,5.9629]
[1747537424902,61.4626,167.68,167.59,59.54]
[1747537425096,1.9771,167.69,167.59,59.54]
[1747537425299,1.9771,167.69,167.68,5.9618]
[1747537427108,1.9771,167.69,167.63,59.54]
[1747537427607,1.9771,167.69,167.67,5.9619]
[1747537428103,1.9771,167.69,167.63,59.54]
[1747537428706,1.9771,167.69,167.67,5.9619]
[1747537429008,1.9771,167.69,167.63,59.54]
[1747537429208,119.1,167.71,167.68,5.9617]
[1747537429811,59.54,167.71,167.68,5.9617]
[1747537430106,119.04,167.71,167.63,59.54]
[1747537431602,119.04,167.71,167.68,5.9618]
[1747537433111,119.04,167.71,167.67,5.962]
[1747537433112,125.0007,167.71,167.67,5.962]
[1747537433715,119.04,167.71,167.67,5.962]
[1747537434508,119.04,167.71,167.63,59.54]
[1747537434916,119.04,167.71,167.69,5.9613]
[1747537435115,5.8771,167.74,167.63,59.54]
[1747537435407,65.2771,167.74,167.71,5.9606]
[1747537435608,5.8771,167.74,167.71,5.9606]
[1747537435805,65.3171,167.74,167.63,59.54]
[1747537436306,71.2768,167.74,167.69,5.9611]
[1747537436813,71.2768,167.74,167.63,59.54]
[1747537437514,71.2768,167.74,167.7,5.961]
[1747537438113,65.3171,167.74,167.63,59.54]
[1747537438313,5.9601,167.73,167.69,5.9613]
[1747537439212,5.9601,167.73,167.7,5.9611]
[1747537439514,71.2769,167.74,167.7,5.9611]
[1747537440516,5.9601,167.73,167.7,5.9611]
[1747537440718,65.3171,167.74,167.7,5.9611]
[1747537441018,71.277,167.74,167.7,5.9611]
[1747537441317,71.197,167.74,167.7,5.9611]
[1747537441819,5.8771,167.74,167.67,59.34]
[1747537442016,3.9351,167.74,167.67,59.34]
[1747537442614,1.9228,167.79,167.67,59.34]
[1747537442814,61.4049,167.78,167.67,59.34]
[1747537443014,61.4049,167.78,167.75,5.9592]
[1747537443621,2.0249,167.78,167.76,5.9589]
[1747537444026,2.0249,167.78,167.71,59.34]
[1747537444319,2.0249,167.78,167.76,5.9586]
[1747537444921,5.9577,167.8,167.76,5.9586]
[1747537449432,59.40006068,167.81,167.71,59.34]
[1747537449626,59.40006068,167.81,167.72,59.32]
[1747537449826,5.958,167.79,167.74,5.9594]
[1747537450026,5.958,167.79,167.72,59.32]
[1747537450431,5.958,167.79,167.74,5.9595]
[1747537450627,5.9583,167.78,167.74,5.9595]
[1747537450829,59.40006068,167.81,167.72,59.32]
[1747537451432,5.9588,167.77,167.72,59.32]
[1747537451635,59.40006068,167.81,167.71,59.32]
[1747537451827,5.9588,167.77,167.71,59.32]
[1747537452536,5.9588,167.77,167.73,5.9598]
[1747537453529,5.9582,167.79,167.71,59.32]
[1747537453738,6.068e-05,167.81,167.71,64.55754623]
[1747537454234,6.068e-05,167.81,167.8,5.9575]
[1747537467955,0.42837158,167.87,167.83,5.9565]
[1747537468143,0.42837158,167.87,167.83,65.2565]
[1747537469149,0.42837158,167.87,167.86,5.9554]
[1747537471552,0.42837158,167.87,167.86,65.4154]
[1747537480757,0.42837158,167.87,167.81,5.23754623]
[1747537480964,0.42837158,167.87,167.82,59.42]
[1747537481463,0.42837158,167.87,167.86,5.9554]
[1747537485868,0.42837158,167.87,167.8,59.42]
[1747537486170,5.9555,167.86,167.82,5.9568]
[1747537486369,0.42837158,167.87,167.8,59.42]
[1747537486667,59.36,167.86,167.8,59.42]
[1747537487167,65.3157,167.86,167.8,59.42]
[1747537487567,65.3157,167.86,167.82,5.9567]
[1747537488571,59.36,167.86,167.82,5.9567]
[1747537489261,59.36,167.86,167.83,5.9563]
[1747537491171,59.36,167.86,167.8,59.42]
[1747537491464,64.59754623,167.86,167.76,59.42]
[1747537491667,64.59754623,167.86,167.74,59.42]
[1747537491969,5.9571,167.82,167.78,5.9581]
[1747537492172,63.3447,167.81,167.78,5.9581]
[1747537492871,0.42837158,167.87,167.78,59.42]
[1747537494467,0.42837158,167.87,167.86,5.9554]
[1747537494870,7.158e-05,167.87,167.86,5.9554]
[1747537495071,0.36427955,167.91,167.9,5.954]
[1747537496077,0.54119134,167.94,167.93,5.9529]
[1747537496373,0.54119134,167.94,167.93,65.3729]
[1747537498179,0.54119134,167.94,167.93,5.9529]
[1747537504982,0.54119134,167.94,167.92,5.9532]
[1747537505482,0.54119134,167.94,167.88,59.98]
[1747537505676,0.54119134,167.94,167.93,5.9529]
[1747537509285,0.54119134,167.94,167.92,5.9532]
[1747537509986,0.54119134,167.94,167.93,5.9529]
[1747537511287,0.54119134,167.94,167.87,59.88]
[1747537511683,59.8,167.93,167.87,59.88]
[1747537511883,1.9326,167.92,167.87,59.88]
[1747537512085,3.9365,167.92,167.89,5.954]
[1747537512786,3.9365,167.92,167.84,119.68]
[1747537512991,3.9365,167.92,167.84,59.88]
[1747537513179,63.8165,167.92,167.84,59.88]
[1747537513790,69.7698,167.92,167.83,59.88]
[1747537513990,63.8165,167.92,167.83,59.88]
[1747537514294,63.8165,167.92,167.88,5.9544]
[1747537514491,63.8165,167.92,167.83,59.88]
[1747537515088,69.7699,167.92,167.83,59.88]
[1747537515589,69.7699,167.92,167.87,5.9548]
[1747537517899,5.9537,167.91,167.87,5.9548]
[1747537518901,63.8165,167.92,167.83,59.88]
[1747537519195,59.76,167.91,167.83,59.88]
[1747537519599,59.76,167.91,167.88,5.9545]
[1747537520898,59.76,167.91,167.89,5.9543]
[1747537522603,59.76,167.91,167.88,5.9546]
[1747537523501,59.76,167.91,167.89,5.9543]
[1747537525196,59.76,167.91,167.83,59.88]
[1747537525910,59.76,167.91,167.89,5.9543]
[1747537526510,59.76,167.91,167.83,59.88]
[1747537527009,5.9542,167.9,167.86,5.9551]
[1747537527213,59.76,167.91,167.81,59.88]
[1747537527808,5.9544,167.89,167.85,5.9556]
[1747537529819,59.76,167.91,167.83,5.9561]
[1747537530302,59.76,167.91,167.78,119.6]
[1747537530509,5.9549,167.88,167.78,119.6]
[1747537530709,119.56,167.87,167.78,119.6]
[1747537531518,119.56,167.87,167.84,5.956]
[1747537533721,119.56,167.87,167.83,5.9563]
[1747537534719,119.56,167.87,167.78,59.9]
[1747537535120,5.9558,167.85,167.81,5.957]
[1747537536826,5.9558,167.85,167.78,59.9]
[1747537536827,119.56,167.87,167.78,59.9]
[1747537537325,125.5154,167.87,167.82,5.9565]
[1747537537620,119.56,167.87,167.82,5.9565]
[1747537538625,5.9555,167.86,167.82,5.9565]
[1747537540223,119.12,167.85,167.82,5.9565]
[1747537540420,59.52,167.84,167.82,5.9565]
[1747537541720,5.9555,167.86,167.82,5.9565]
[1747537542123,119.08,167.85,167.81,5.9571]
[1747537542423,125.0358,167.85,167.81,5.9571]
[1747537543029,125.0358,167.85,167.8,5.9574]
[1747537543628,5.9562,167.84,167.8,5.9574]
[1747537544633,5.9565,167.83,167.79,5.9577]
[1747537545026,5.9565,167.83,167.75,59.6]
[1747537545228,5.9565,167.83,167.79,5.9576]
[1747537545733,5.9565,167.83,167.8,5.9575]
[1747537545928,7.8783,167.84,167.75,59.6]
[1747537546331,5.9565,167.83,167.75,59.6]
[1747537547132,5.9565,167.83,167.79,5.9576]
[1747537548237,5.9569,167.82,167.79,5.9576]
[1747537549238,65.3372,167.81,167.78,5.9581]
[1747537550138,5.9575,167.8,167.77,5.9585]
[1747537550535,5.9575,167.8,167.75,59.6]
[1747537550836,59.38,167.81,167.79,5.9578]
[1747537551535,65.3372,167.81,167.78,5.9581]
[1747537552835,5.9576,167.8,167.78,5.9581]
[1747537553036,59.38,167.81,167.78,5.9581]
[1747537553434,59.38,167.81,167.79,5.9578]
[1747537554239,65.3372,167.81,167.79,5.9578]
[1747537554931,5.9575,167.8,167.75,59.6]
[1747537555441,5.9575,167.8,167.77,5.9584]
[1747537556738,5.9575,167.8,167.75,59.6]
[1747537558533,5.9575,167.8,167.76,5.9588]
[1747537558836,119.0,167.81,167.72,59.62]
[1747537559032,119.0,167.81,167.69,1.9446]
[1747537559033,1.9582,167.8,167.69,61.5646]
[1747537559341,1.9582,167.8,167.73,5.9598]
[1747537559939,5.9583,167.78,167.73,5.9598]
[1747537560133,118.98,167.77,167.74,5.9596]
[1747537560534,118.98,167.77,167.74,5.9594]
[1747537561937,118.98,167.77,167.69,61.5646]
[1747537562444,118.98,167.77,167.73,5.9597]
[1747537563129,5.959,167.76,167.73,5.9597]
[1747537563740,118.98,167.77,167.69,59.62]
[1747537564038,1.9832,167.76,167.66,574.54]
[1747537564334,1.9832,167.76,167.71,5.9606]
[1747537565639,5.9597,167.74,167.71,5.9606]
[1747537565840,59.34,167.73,167.71,5.9606]
[1747537566238,59.34,167.73,167.7,5.9609]
[1747537569043,65.3001,167.73,167.7,5.9609]
[1747537572238,65.3001,167.73,167.71,5.9607]
[1747537573242,1.9832,167.76,167.66,514.92]
[1747537573440,61.2432,167.76,167.67,118.62]